[Event "*** Titled Tuesday Blitz"]
[Site "Chess.com"]
[Date "2021.04.06"]
[Round "4"]
[White "VD_coach"]
[Black "ARMQUEEN"]
[Result "1-0"]
[WhiteElo "2509"]
[BlackElo "2307"]
[TimeControl "180+1"]
[EndTime "10:41:01 PDT"]
[Termination "VD_coach won by resignation"]

1. Nf3 {[%clk 0:03:00]} 1... c5 {[%clk 0:02:58.7]} 2. g3 {[%clk 0:03:00]} 2...
g6 {[%clk 0:02:55]} 3. Bg2 {[%clk 0:03:00.1]} 3... Bg7 {[%clk 0:02:51.3]} 4. O-O
{[%clk 0:03:00.2]} 4... Nc6 {[%clk 0:02:43.6]} 5. c3 {[%clk 0:03:00.1]} 5... d5
{[%clk 0:02:42.6]} 6. d4 {[%clk 0:03:00]} 6... c4 {[%clk 0:02:41.9]} 7. b3
{[%clk 0:02:55.3]} 7... cxb3 {[%clk 0:02:36.8]} 8. axb3 {[%clk 0:02:54.9]} 8...
Nf6 {[%clk 0:02:34.4]} 9. c4 {[%clk 0:02:52]} 9... O-O {[%clk 0:02:33.7]} 10.
Nc3 {[%clk 0:02:51.8]} 10... Be6 {[%clk 0:02:09.4]} 11. Ng5 {[%clk 0:02:48.2]}
11... h6 {[%clk 0:01:56.3]} 12. Nxe6 {[%clk 0:02:45.7]} 12... fxe6 {[%clk
0:01:57.2]} 13. e3 {[%clk 0:02:41.5]} 13... Qd7 {[%clk 0:01:55.1]} 14. Ba3
{[%clk 0:02:34.6]} 14... Rac8 {[%clk 0:01:54.3]} 15. Qe2 {[%clk 0:02:30.9]}
15... Rfd8 {[%clk 0:01:53.8]} 16. Rfd1 {[%clk 0:02:30.8]} 16... Kh7 {[%clk
0:01:46.7]} 17. Bh3 {[%clk 0:02:29.2]} 17... Rf8 {[%clk 0:01:42.6]} 18. cxd5
{[%clk 0:02:26.8]} 18... Nxd5 {[%clk 0:01:42.2]} 19. Ne4 {[%clk 0:02:21.4]}
19... b6 {[%clk 0:01:33.9]} 20. Rac1 {[%clk 0:02:16.9]} 20... Na5 {[%clk
0:01:29.8]} 21. Qa2 {[%clk 0:02:03.4]} 21... Rc6 {[%clk 0:01:11.9]} 22. b4
{[%clk 0:01:57.7]} 22... Nb7 {[%clk 0:00:59.3]} 23. Rxc6 {[%clk 0:01:56.6]}
23... Qxc6 {[%clk 0:01:00.2]} 24. Rc1 {[%clk 0:01:53.1]} 24... Qd7 {[%clk
0:01:00]} 25. Nc3 {[%clk 0:01:47.2]} 25... Rc8 {[%clk 0:00:55.9]} 26. Nxd5
{[%clk 0:01:42.3]} 26... Rxc1+ {[%clk 0:00:56.8]} 27. Bxc1 {[%clk 0:01:42.6]}
27... Qxd5 {[%clk 0:00:57.4]} 28. Bxe6 {[%clk 0:01:40.4]} 28... Qf3 {[%clk
0:00:49.1]} 29. Qc2 {[%clk 0:01:30.4]} 29... Nd6 {[%clk 0:00:47.7]} 30. Bd2
{[%clk 0:01:22.6]} 30... Ne4 {[%clk 0:00:42.7]} 31. Be1 {[%clk 0:01:21.7]} 31...
Ng5 {[%clk 0:00:42.9]} 32. Bc4 {[%clk 0:01:03.7]} 32... Nh3+ {[%clk 0:00:37.1]}
33. Kf1 {[%clk 0:01:03.5]} 33... Qh1+ {[%clk 0:00:35.1]} 34. Ke2 {[%clk
0:01:03.5]} 34... Ng1+ {[%clk 0:00:32.8]} 35. Kd1 {[%clk 0:01:03.5]} 35... Qxh2
{[%clk 0:00:24.2]} 36. Qe4 {[%clk 0:00:43.9]} 36... Qh5+ {[%clk 0:00:22.1]} 37.
g4 {[%clk 0:00:43.7]} 37... Qg5 {[%clk 0:00:16.5]} 38. Bd3 {[%clk 0:00:41.8]}
38... Qf6 {[%clk 0:00:15.4]} 39. f4 {[%clk 0:00:36.5]} 39... Nh3 {[%clk
0:00:15.2]} 40. Bh4 {[%clk 0:00:27.7]} 40... Qd6 {[%clk 0:00:14.7]} 41. Bxe7
{[%clk 0:00:24.8]} 41... Nf2+ {[%clk 0:00:14]} 42. Ke2 {[%clk 0:00:20.8]} 42...
Nxe4 {[%clk 0:00:14.9]} 43. Bxd6 {[%clk 0:00:21.1]} 43... Nxd6 {[%clk
0:00:15.8]} 44. b5 {[%clk 0:00:20.8]} 44... a5 {[%clk 0:00:16.7]} 45. bxa6
{[%clk 0:00:20.7]} 45... Nc8 {[%clk 0:00:17.1]} 46. Kf3 {[%clk 0:00:18.9]} 46...
Na7 {[%clk 0:00:18]} 47. Ke4 {[%clk 0:00:19.3]} 47... Bf8 {[%clk 0:00:18.9]} 48.
Kd5 {[%clk 0:00:19.5]} 48... Kg7 {[%clk 0:00:19.8]} 49. Ke6 {[%clk 0:00:17]}
49... h5 {[%clk 0:00:19.9]} 50. gxh5 {[%clk 0:00:14.8]} 50... gxh5 {[%clk
0:00:20.8]} 51. d5 {[%clk 0:00:13.2]} 51... b5 {[%clk 0:00:20.5]} 52. d6 {[%clk
0:00:13.3]} 52... Bxd6 {[%clk 0:00:20]} 53. Kxd6 {[%clk 0:00:13.1]} 53... b4
{[%clk 0:00:20.6]} 54. Kc5 {[%clk 0:00:12]} 54... b3 {[%clk 0:00:21.1]} 55. Kb6
{[%clk 0:00:12.4]} 55... h4 {[%clk 0:00:21.2]} 56. Kxa7 {[%clk 0:00:12.3]} 56...
h3 {[%clk 0:00:21.7]} 57. Kb8 {[%clk 0:00:12]} 57... h2 {[%clk 0:00:22.1]} 58.
a7 {[%clk 0:00:12]} 58... b2 {[%clk 0:00:22.4]} 59. a8=Q {[%clk 0:00:12]} 59...
b1=Q+ {[%clk 0:00:21.8]} 60. Bxb1 {[%clk 0:00:11.7]} 60... h1=Q {[%clk
0:00:22.7]} 61. Qxh1 {[%clk 0:00:12]} 61... Kf6 {[%clk 0:00:22.9]} 62. Qe4
{[%clk 0:00:11.9]} 62... Kf7 {[%clk 0:00:22.3]} 63. Qg6+ {[%clk 0:00:12.1]} 1-0

[Event "*** Titled Tuesday Blitz"]
[Site "Chess.com"]
[Date "2021.04.06"]
[Round "4"]
[White "Alexander_Zubov"]
[Black "krzyzan94"]
[Result "1-0"]
[WhiteElo "2984"]
[BlackElo "2687"]
[TimeControl "180+1"]
[EndTime "10:41:02 PDT"]
[Termination "Alexander_Zubov won on time"]

1. e4 {[%clk 0:03:00.9]} 1... e5 {[%clk 0:02:57.8]} 2. Nf3 {[%clk 0:03:00.8]}
2... Nc6 {[%clk 0:02:57.2]} 3. Bb5 {[%clk 0:03:00.5]} 3... a6 {[%clk 0:02:56.3]}
4. Ba4 {[%clk 0:03:00.4]} 4... d6 {[%clk 0:02:56.8]} 5. c3 {[%clk 0:02:59.7]}
5... g6 {[%clk 0:02:54.8]} 6. d4 {[%clk 0:02:58.6]} 6... Bd7 {[%clk 0:02:54.5]}
7. d5 {[%clk 0:02:56.7]} 7... Nb8 {[%clk 0:02:53.4]} 8. Bxd7+ {[%clk 0:02:56.4]}
8... Nxd7 {[%clk 0:02:54.3]} 9. c4 {[%clk 0:02:56.8]} 9... h6 {[%clk 0:02:51]}
10. Nc3 {[%clk 0:02:54.9]} 10... f5 {[%clk 0:02:47]} 11. g3 {[%clk 0:02:49.3]}
11... Bg7 {[%clk 0:02:42.1]} 12. exf5 {[%clk 0:02:37.1]} 12... Ne7 {[%clk
0:02:00.4]} 13. fxg6 {[%clk 0:02:32.3]} 13... Nxg6 {[%clk 0:01:57.7]} 14. Qd3
{[%clk 0:02:25.8]} 14... Qf6 {[%clk 0:01:53.1]} 15. Ne4 {[%clk 0:02:25.1]} 15...
Qf7 {[%clk 0:01:52.9]} 16. O-O {[%clk 0:02:13.9]} 16... O-O {[%clk 0:01:50.7]}
17. Kg2 {[%clk 0:02:11.8]} 17... Rae8 {[%clk 0:01:42.1]} 18. Bd2 {[%clk
0:02:08.5]} 18... Kh8 {[%clk 0:01:40.7]} 19. Rae1 {[%clk 0:02:07.1]} 19... Qf5
{[%clk 0:01:37.8]} 20. h3 {[%clk 0:02:03.7]} 20... b5 {[%clk 0:01:16.9]} 21. b3
{[%clk 0:01:50.6]} 21... bxc4 {[%clk 0:01:16.9]} 22. bxc4 {[%clk 0:01:50.4]}
22... Rb8 {[%clk 0:01:17.5]} 23. Ba5 {[%clk 0:01:39]} 23... Rb7 {[%clk 0:01:12]}
24. Re3 {[%clk 0:01:31.3]} 24... Qf7 {[%clk 0:00:37.1]} 25. Rc1 {[%clk
0:01:26.8]} 25... Rg8 {[%clk 0:00:35.3]} 26. Kh2 {[%clk 0:01:23.8]} 26... Bf8
{[%clk 0:00:34.9]} 27. Bc3 {[%clk 0:01:16]} 27... Qf5 {[%clk 0:00:26.8]} 28. Qe2
{[%clk 0:01:02.9]} 28... Bg7 {[%clk 0:00:24.3]} 29. Re1 {[%clk 0:00:48.4]} 29...
Rf8 {[%clk 0:00:22.9]} 30. c5 {[%clk 0:00:46.1]} 30... Nxc5 {[%clk 0:00:19.7]}
31. Nxc5 {[%clk 0:00:45.9]} 31... dxc5 {[%clk 0:00:20.6]} 32. Qxa6 {[%clk
0:00:44.2]} 32... Rb6 {[%clk 0:00:18.9]} 33. Qc4 {[%clk 0:00:43.1]} 33... e4
{[%clk 0:00:15]} 34. Bxg7+ {[%clk 0:00:42.3]} 34... Kxg7 {[%clk 0:00:15.9]} 35.
Qc3+ {[%clk 0:00:37]} 35... Kh7 {[%clk 0:00:15.2]} 36. Nd2 {[%clk 0:00:27.4]}
36... Qxf2+ {[%clk 0:00:15.2]} 37. Kh1 {[%clk 0:00:28]} 37... Rbf6 {[%clk
0:00:14.5]} 38. Nxe4 {[%clk 0:00:26.9]} 38... Qf5 {[%clk 0:00:10.8]} 39. Nxf6+
{[%clk 0:00:26.1]} 39... Rxf6 {[%clk 0:00:11.7]} 40. Qd3 {[%clk 0:00:23.2]}
40... Qxh3+ {[%clk 0:00:11.7]} 41. Kg1 {[%clk 0:00:23.6]} 41... Rf7 {[%clk
0:00:11.8]} 42. Re6 {[%clk 0:00:21.8]} 42... Qg4 {[%clk 0:00:11.3]} 43. R1e4
{[%clk 0:00:19.7]} 43... Qg5 {[%clk 0:00:10.2]} 44. Kg2 {[%clk 0:00:10.4]} 44...
Kg7 {[%clk 0:00:09.8]} 45. Qc3+ {[%clk 0:00:10]} 45... Kh7 {[%clk 0:00:10.3]}
46. Qe3 {[%clk 0:00:07]} 46... Qxd5 {[%clk 0:00:07]} 47. Kh2 {[%clk 0:00:06.2]}
47... Qxa2+ {[%clk 0:00:06.2]} 48. Kh3 {[%clk 0:00:06.8]} 48... Qd5 {[%clk
0:00:06.2]} 49. Re8 {[%clk 0:00:06.2]} 49... Qh5+ {[%clk 0:00:05.3]} 50. Kg2
{[%clk 0:00:06.7]} 50... Qd5 {[%clk 0:00:06.2]} 51. Qe2 {[%clk 0:00:05.9]} 51...
c4 {[%clk 0:00:06.2]} 52. Qxc4 {[%clk 0:00:06]} 52... Qd2+ {[%clk 0:00:05.7]}
53. Re2 {[%clk 0:00:06.2]} 53... Qd7 {[%clk 0:00:05.7]} 54. Qe4 {[%clk
0:00:06.5]} 54... Rg7 {[%clk 0:00:04.8]} 55. Re6 {[%clk 0:00:06.9]} 55... Qf7
{[%clk 0:00:04.1]} 56. Rf2 {[%clk 0:00:07.4]} 56... Qg8 {[%clk 0:00:03.3]} 57.
Rff6 {[%clk 0:00:07.7]} 57... h5 {[%clk 0:00:02.7]} 58. Qf5 {[%clk 0:00:08.1]}
58... Kh6 {[%clk 0:00:03]} 59. Kh3 {[%clk 0:00:07.9]} 59... c5 {[%clk
0:00:02.4]} 60. Re5 {[%clk 0:00:07.9]} 1-0

[Event "*** Titled Tuesday Blitz"]
[Site "Chess.com"]
[Date "2021.04.06"]
[Round "4"]
[White "MarcoRiehle"]
[Black "Natalya_Buksa"]
[Result "1-0"]
[WhiteElo "2680"]
[BlackElo "2510"]
[TimeControl "180+1"]
[EndTime "10:41:02 PDT"]
[Termination "MarcoRiehle won by resignation"]

1. e4 {[%clk 0:03:00.9]} 1... c5 {[%clk 0:03:00.2]} 2. a3 {[%clk 0:03:00.1]}
2... Nc6 {[%clk 0:02:57.9]} 3. b4 {[%clk 0:02:59.6]} 3... cxb4 {[%clk 0:02:58]}
4. axb4 {[%clk 0:03:00.5]} 4... e5 {[%clk 0:02:56.8]} 5. b5 {[%clk 0:03:00.4]}
5... Nd4 {[%clk 0:02:57.3]} 6. c3 {[%clk 0:03:00.2]} 6... Ne6 {[%clk 0:02:57.2]}
7. d4 {[%clk 0:03:00.7]} 7... exd4 {[%clk 0:02:56.6]} 8. cxd4 {[%clk 0:03:01.6]}
8... Bb4+ {[%clk 0:02:57]} 9. Bd2 {[%clk 0:03:00.5]} 9... Qe7 {[%clk 0:02:57.2]}
10. d5 {[%clk 0:02:59.6]} 10... Nd4 {[%clk 0:02:37.3]} 11. Bd3 {[%clk
0:02:55.5]} 11... Nf6 {[%clk 0:02:34.6]} 12. Ne2 {[%clk 0:02:23.1]} 12... Nxe2
{[%clk 0:02:29.9]} 13. Qxe2 {[%clk 0:02:22.2]} 13... Bxd2+ {[%clk 0:02:10.3]}
14. Nxd2 {[%clk 0:02:21.6]} 14... d6 {[%clk 0:02:10.3]} 15. O-O {[%clk 0:02:20]}
15... O-O {[%clk 0:02:10.1]} 16. Nc4 {[%clk 0:02:20.6]} 16... Nd7 {[%clk
0:02:09.5]} 17. f4 {[%clk 0:02:17.4]} 17... Nc5 {[%clk 0:02:09.5]} 18. Bc2
{[%clk 0:02:10.3]} 18... Bf5 {[%clk 0:02:04.5]} 19. Rae1 {[%clk 0:01:52.4]}
19... Rfe8 {[%clk 0:01:56.3]} 20. e5 {[%clk 0:01:51.1]} 20... Bxc2 {[%clk
0:01:26.4]} 21. Qxc2 {[%clk 0:01:52]} 21... dxe5 {[%clk 0:01:26.5]} 22. fxe5
{[%clk 0:01:45.7]} 22... b6 {[%clk 0:01:23.3]} 23. Nd6 {[%clk 0:01:39.8]} 23...
Rf8 {[%clk 0:01:22.9]} 24. Nf5 {[%clk 0:01:39.8]} 24... Qg5 {[%clk 0:00:52.4]}
25. Rf3 {[%clk 0:01:31.7]} 25... g6 {[%clk 0:00:50.9]} 26. Rg3 {[%clk
0:01:29.8]} 26... Qh5 {[%clk 0:00:47.4]} 27. Ne7+ {[%clk 0:01:18.9]} 27... Kg7
{[%clk 0:00:42]} 28. Qc3 {[%clk 0:01:19.8]} 28... Rad8 {[%clk 0:00:33.7]} 29. h3
{[%clk 0:01:09.6]} 29... Kh8 {[%clk 0:00:19.1]} 30. Rg4 {[%clk 0:00:58.4]} 30...
Rde8 {[%clk 0:00:15.9]} 31. e6+ {[%clk 0:00:46.6]} 31... f6 {[%clk 0:00:15.7]}
32. d6 {[%clk 0:00:47]} 32... Kg7 {[%clk 0:00:10.2]} 33. Kh1 {[%clk 0:00:40.7]}
33... Rd8 {[%clk 0:00:04.5]} 34. d7 {[%clk 0:00:36.6]} 34... Nxd7 {[%clk
0:00:04.9]} 35. exd7 {[%clk 0:00:31.8]} 35... Rxd7 {[%clk 0:00:05.8]} 36. Nc6
{[%clk 0:00:32.2]} 36... Rdf7 {[%clk 0:00:05.8]} 37. Nd4 {[%clk 0:00:30.4]}
37... Kg8 {[%clk 0:00:04.3]} 38. Qc4 {[%clk 0:00:25.2]} 38... Qc5 {[%clk
0:00:02]} 39. Qxc5 {[%clk 0:00:25.2]} 39... bxc5 {[%clk 0:00:02.3]} 40. Ne6
{[%clk 0:00:26.1]} 40... Rb8 {[%clk 0:00:02.4]} 41. Rd1 {[%clk 0:00:22.9]} 41...
Re7 {[%clk 0:00:01]} 42. Nxc5 {[%clk 0:00:22.5]} 42... Rxb5 {[%clk 0:00:01.5]}
43. Nd3 {[%clk 0:00:20.5]} 43... Kg7 {[%clk 0:00:01.6]} 44. Rd4 {[%clk
0:00:19.7]} 44... a5 {[%clk 0:00:01.9]} 45. Nf4 {[%clk 0:00:19.8]} 45... Ra7
{[%clk 0:00:02.1]} 46. Ra4 {[%clk 0:00:16.3]} 46... Rb4 {[%clk 0:00:01.4]} 47.
Rxb4 {[%clk 0:00:16]} 47... axb4 {[%clk 0:00:02.3]} 48. Rb1 {[%clk 0:00:16.5]}
48... Rb7 {[%clk 0:00:02.6]} 49. Rb3 {[%clk 0:00:16.4]} 49... f5 {[%clk
0:00:02.1]} 50. Nd5 {[%clk 0:00:16]} 50... g5 {[%clk 0:00:01.7]} 51. Rxb4 {[%clk
0:00:15.1]} 51... Rd7 {[%clk 0:00:02.1]} 52. Ne3 {[%clk 0:00:14.6]} 52... Kg6
{[%clk 0:00:02]} 53. Rb6+ {[%clk 0:00:13.7]} 53... Kg7 {[%clk 0:00:02]} 54.
Nxf5+ {[%clk 0:00:13.7]} 54... Kf7 {[%clk 0:00:02.9]} 55. Kh2 {[%clk 0:00:13.6]}
55... Rd5 {[%clk 0:00:02.8]} 56. Rb7+ {[%clk 0:00:12.9]} 56... Kg6 {[%clk
0:00:03.1]} 57. Ng3 {[%clk 0:00:13]} 57... h6 {[%clk 0:00:02.8]} 58. Rb6+ {[%clk
0:00:12.7]} 58... Kf7 {[%clk 0:00:02.6]} 59. Ne4 {[%clk 0:00:12.7]} 59... Rd4
{[%clk 0:00:02.4]} 60. Ng3 {[%clk 0:00:12.3]} 60... Kg7 {[%clk 0:00:02.8]} 61.
Nf5+ {[%clk 0:00:12.3]} 1-0

[Event "*** Titled Tuesday Blitz"]
[Site "Chess.com"]
[Date "2021.04.06"]
[Round "4"]
[White "WisdomGame"]
[Black "Chessbard1972"]
[Result "0-1"]
[WhiteElo "2081"]
[BlackElo "2332"]
[TimeControl "180+1"]
[EndTime "10:41:02 PDT"]
[Termination "Chessbard1972 won by checkmate"]

1. Nf3 {[%clk 0:03:00.9]} 1... Nf6 {[%clk 0:02:58.9]} 2. g3 {[%clk 0:03:01.8]}
2... g6 {[%clk 0:02:59.1]} 3. Bg2 {[%clk 0:03:02.7]} 3... Bg7 {[%clk 0:02:59.6]}
4. O-O {[%clk 0:03:03.6]} 4... O-O {[%clk 0:03:00.1]} 5. d4 {[%clk 0:03:04.1]}
5... d6 {[%clk 0:02:59.9]} 6. c4 {[%clk 0:03:05]} 6... Nc6 {[%clk 0:02:59.5]} 7.
Nc3 {[%clk 0:03:05.9]} 7... a6 {[%clk 0:02:59.5]} 8. d5 {[%clk 0:03:05.4]} 8...
Na5 {[%clk 0:02:58.7]} 9. b3 {[%clk 0:03:05.1]} 9... c5 {[%clk 0:02:58.9]} 10.
Bd2 {[%clk 0:03:01.3]} 10... Rb8 {[%clk 0:02:54.2]} 11. Qe1 {[%clk 0:02:57.5]}
11... b5 {[%clk 0:02:45.6]} 12. Nxb5 {[%clk 0:02:57]} 12... Nxc4 {[%clk
0:02:36.6]} 13. bxc4 {[%clk 0:02:56.2]} 13... axb5 {[%clk 0:02:36.1]} 14. cxb5
{[%clk 0:02:54.8]} 14... Rxb5 {[%clk 0:02:34.8]} 15. a4 {[%clk 0:02:55.7]} 15...
Rb8 {[%clk 0:02:28.2]} 16. e4 {[%clk 0:02:55.2]} 16... Ba6 {[%clk 0:02:27]} 17.
e5 {[%clk 0:02:46.7]} 17... Nxd5 {[%clk 0:02:21.9]} 18. exd6 {[%clk 0:02:44.8]}
18... exd6 {[%clk 0:02:19.8]} 19. Ba5 {[%clk 0:02:40]} 19... Qd7 {[%clk
0:02:16.7]} 20. Rd1 {[%clk 0:02:39.6]} 20... Bxf1 {[%clk 0:02:11.2]} 21. Bxf1
{[%clk 0:02:39.4]} 21... Nb4 {[%clk 0:02:03]} 22. Bb5 {[%clk 0:02:37.3]} 22...
Qf5 {[%clk 0:01:56.3]} 23. Nh4 {[%clk 0:02:34.4]} 23... Qf6 {[%clk 0:01:48.1]}
24. Bxb4 {[%clk 0:02:32.8]} 24... cxb4 {[%clk 0:01:47.6]} 25. Qxb4 {[%clk
0:02:33.7]} 25... Rfd8 {[%clk 0:01:42.5]} 26. Ng2 {[%clk 0:02:32.4]} 26... d5
{[%clk 0:01:40]} 27. Nf4 {[%clk 0:02:15]} 27... d4 {[%clk 0:01:39.2]} 28. Qc4
{[%clk 0:02:02.4]} 28... Qe5 {[%clk 0:01:34.9]} 29. Nd3 {[%clk 0:01:59.8]} 29...
Qf5 {[%clk 0:01:22.3]} 30. Re1 {[%clk 0:01:48.6]} 30... Rbc8 {[%clk 0:01:20.3]}
31. Qa2 {[%clk 0:01:48]} 31... Rc7 {[%clk 0:01:13.7]} 32. Nf4 {[%clk 0:01:36.9]}
32... h5 {[%clk 0:01:09.3]} 33. Bd3 {[%clk 0:01:35.4]} 33... Qg5 {[%clk
0:00:59.6]} 34. Nxg6 {[%clk 0:01:24.8]} 34... Rc1 {[%clk 0:00:52.2]} 35. Rxc1
{[%clk 0:01:23.2]} 35... Qxc1+ {[%clk 0:00:51.2]} 36. Kg2 {[%clk 0:01:23.4]}
36... Qc6+ {[%clk 0:00:51]} 37. f3 {[%clk 0:01:13.2]} 37... Qe6 {[%clk
0:00:48.9]} 38. Qxe6 {[%clk 0:01:07.5]} 38... fxe6 {[%clk 0:00:48.2]} 39. a5
{[%clk 0:01:07.4]} 39... Rb8 {[%clk 0:00:34.1]} 40. a6 {[%clk 0:01:03.8]} 40...
Rb2+ {[%clk 0:00:33.1]} 41. Kh3 {[%clk 0:01:01]} 41... Kf7 {[%clk 0:00:29.9]}
42. Be4 {[%clk 0:00:59.1]} 42... Ra2 {[%clk 0:00:27.1]} 43. Bd3 {[%clk
0:00:56.4]} 43... Ra3 {[%clk 0:00:26.2]} 44. Nf4 {[%clk 0:00:51.8]} 44... Bh6
{[%clk 0:00:23.2]} 45. Bc4 {[%clk 0:00:13.9]} 45... Bxf4 {[%clk 0:00:21.6]} 46.
gxf4 {[%clk 0:00:14.8]} 46... Rxf3+ {[%clk 0:00:19.9]} 47. Kg2 {[%clk
0:00:14.7]} 47... Rxf4 {[%clk 0:00:16.3]} 48. a7 {[%clk 0:00:13.6]} 48... Rg4+
{[%clk 0:00:15.3]} 49. Kf3 {[%clk 0:00:12.1]} 49... Rg8 {[%clk 0:00:15.1]} 50.
Ke4 {[%clk 0:00:12.5]} 50... Ra8 {[%clk 0:00:14.7]} 51. Ke5 {[%clk 0:00:10.3]}
51... Rxa7 {[%clk 0:00:14.8]} 52. Bxe6+ {[%clk 0:00:10.5]} 52... Ke7 {[%clk
0:00:15.2]} 53. Bf5 {[%clk 0:00:10.6]} 53... Ra5+ {[%clk 0:00:14.3]} 54. Kf4
{[%clk 0:00:10.9]} 54... Rxf5+ {[%clk 0:00:12.6]} 55. Kxf5 {[%clk 0:00:11.8]}
55... d3 {[%clk 0:00:13]} 56. Kg5 {[%clk 0:00:12.7]} 56... d2 {[%clk 0:00:13.8]}
57. Kxh5 {[%clk 0:00:13.6]} 57... d1=Q+ {[%clk 0:00:14.2]} 58. Kh4 {[%clk
0:00:14.1]} 58... Kf7 {[%clk 0:00:14.2]} 59. h3 {[%clk 0:00:15]} 59... Kg6
{[%clk 0:00:13.4]} 60. Kg3 {[%clk 0:00:15.9]} 60... Qd4 {[%clk 0:00:13.3]} 61.
Kh2 {[%clk 0:00:15]} 61... Kh5 {[%clk 0:00:13.5]} 62. Kh1 {[%clk 0:00:15.9]}
62... Qd2 {[%clk 0:00:13.1]} 63. Kg1 {[%clk 0:00:14.3]} 63... Kh4 {[%clk
0:00:13.5]} 64. Kf1 {[%clk 0:00:15.2]} 64... Kg3 {[%clk 0:00:13.3]} 65. h4
{[%clk 0:00:14.4]} 65... Qf2# {[%clk 0:00:13]} 0-1

[Event "*** Titled Tuesday Blitz"]
[Site "Chess.com"]
[Date "2021.04.06"]
[Round "4"]
[White "chessbia"]
[Black "Niktlt"]
[Result "0-1"]
[WhiteElo "2329"]
[BlackElo "2585"]
[TimeControl "180+1"]
[EndTime "10:41:03 PDT"]
[Termination "Niktlt won on time"]

1. d4 {[%clk 0:03:00.9]} 1... Nf6 {[%clk 0:03:00]} 2. c4 {[%clk 0:03:00.4]} 2...
g6 {[%clk 0:03:00.3]} 3. Nc3 {[%clk 0:02:59.7]} 3... Bg7 {[%clk 0:03:00.5]} 4.
e4 {[%clk 0:02:57.4]} 4... d6 {[%clk 0:03:00.7]} 5. Bd3 {[%clk 0:02:51.5]} 5...
O-O {[%clk 0:03:00.3]} 6. Nge2 {[%clk 0:02:50.1]} 6... e5 {[%clk 0:03:00.6]} 7.
d5 {[%clk 0:02:49.4]} 7... a5 {[%clk 0:03:00.7]} 8. O-O {[%clk 0:02:47]} 8...
Na6 {[%clk 0:03:01.1]} 9. Bc2 {[%clk 0:02:46.1]} 9... Nc5 {[%clk 0:03:01.2]} 10.
b3 {[%clk 0:02:36.9]} 10... Ne8 {[%clk 0:02:57.4]} 11. a3 {[%clk 0:02:33.2]}
11... f5 {[%clk 0:02:57.6]} 12. exf5 {[%clk 0:02:33.8]} 12... gxf5 {[%clk
0:02:57.5]} 13. f4 {[%clk 0:02:34.2]} 13... e4 {[%clk 0:02:54]} 14. Be3 {[%clk
0:02:30.1]} 14... Nf6 {[%clk 0:02:53.3]} 15. Bd4 {[%clk 0:02:26.8]} 15... Qe8
{[%clk 0:02:47.1]} 16. Qd2 {[%clk 0:02:22.6]} 16... Qg6 {[%clk 0:02:46.2]} 17.
b4 {[%clk 0:02:20.9]} 17... Na6 {[%clk 0:02:46.5]} 18. Nb5 {[%clk 0:02:01.6]}
18... Bd7 {[%clk 0:02:35.6]} 19. Ba4 {[%clk 0:01:45.1]} 19... Rae8 {[%clk
0:02:27.2]} 20. h3 {[%clk 0:01:38.3]} 20... Bh6 {[%clk 0:02:13.6]} 21. Bxf6
{[%clk 0:01:07.4]} 21... Rxf6 {[%clk 0:02:05.7]} 22. Rac1 {[%clk 0:01:03]} 22...
Rf7 {[%clk 0:01:53.9]} 23. c5 {[%clk 0:01:00.2]} 23... Rg7 {[%clk 0:01:54]} 24.
Ned4 {[%clk 0:00:55.2]} 24... axb4 {[%clk 0:01:39.8]} 25. axb4 {[%clk
0:00:56.1]} 25... Nxb4 {[%clk 0:01:38.5]} 26. cxd6 {[%clk 0:00:47.3]} 26... cxd6
{[%clk 0:01:36.1]} 27. Rc7 {[%clk 0:00:42.1]} 27... Nxd5 {[%clk 0:01:30.8]} 28.
Rxb7 {[%clk 0:00:36.9]} 28... Nxf4 {[%clk 0:01:28.3]} 29. Rxd7 {[%clk
0:00:18.9]} 29... Nxh3+ {[%clk 0:01:20.6]} 30. Kh2 {[%clk 0:00:18.6]} 30... Bxd2
{[%clk 0:01:17.6]} 31. Rxg7+ {[%clk 0:00:18.6]} 31... Qxg7 {[%clk 0:01:11.3]}
32. gxh3 {[%clk 0:00:19]} 32... f4 {[%clk 0:01:08.8]} 33. Rg1 {[%clk 0:00:18.6]}
33... f3 {[%clk 0:00:45.1]} 34. Bb3+ {[%clk 0:00:17.4]} 34... Kh8 {[%clk
0:00:43]} 35. Rxg7 {[%clk 0:00:17.9]} 35... Kxg7 {[%clk 0:00:43.9]} 36. Nxd6
{[%clk 0:00:18.3]} 36... Bf4+ {[%clk 0:00:43.7]} 37. Kg1 {[%clk 0:00:17]} 37...
Bxd6 {[%clk 0:00:14.8]} 38. Nf5+ {[%clk 0:00:16.8]} 38... Kf6 {[%clk 0:00:15.4]}
39. Nxd6 {[%clk 0:00:17.7]} 39... Rb8 {[%clk 0:00:16.1]} 40. Nxe4+ {[%clk
0:00:17.5]} 40... Ke5 {[%clk 0:00:16.4]} 41. Nd2 {[%clk 0:00:17.9]} 41... Kf4
{[%clk 0:00:16.8]} 42. Kf2 {[%clk 0:00:17.6]} 42... h6 {[%clk 0:00:16.5]} 43.
Be6 {[%clk 0:00:15.5]} 43... Rb2 {[%clk 0:00:16.2]} 44. Ke1 {[%clk 0:00:15.4]}
44... f2+ {[%clk 0:00:16.1]} 45. Kxf2 {[%clk 0:00:14]} 45... Rxd2+ {[%clk
0:00:16.7]} 46. Kg1 {[%clk 0:00:13]} 46... Kg3 {[%clk 0:00:16.3]} 47. Kf1 {[%clk
0:00:13.5]} 47... Rf2+ {[%clk 0:00:15.8]} 48. Ke1 {[%clk 0:00:13.5]} 48... h5
{[%clk 0:00:16.7]} 49. Bd7 {[%clk 0:00:13.3]} 49... h4 {[%clk 0:00:17.1]} 50.
Bc8 {[%clk 0:00:12.2]} 50... Rh2 {[%clk 0:00:16.4]} 51. Kf1 {[%clk 0:00:11.5]}
51... Rh1+ {[%clk 0:00:16.7]} 52. Ke2 {[%clk 0:00:11.5]} 52... Ra1 {[%clk
0:00:12.8]} 53. Bg4 {[%clk 0:00:11.4]} 53... Ra2+ {[%clk 0:00:12.3]} 54. Kf1
{[%clk 0:00:11.8]} 54... Kf4 {[%clk 0:00:12.3]} 55. Bd7 {[%clk 0:00:10.6]} 55...
Rc2 {[%clk 0:00:12.2]} 56. Bg4 {[%clk 0:00:09.8]} 56... Kg3 {[%clk 0:00:09.5]}
57. Bd7 {[%clk 0:00:09.5]} 57... Rc4 {[%clk 0:00:09.4]} 58. Be6 {[%clk
0:00:09.4]} 58... Rf4+ {[%clk 0:00:07.7]} 59. Kg1 {[%clk 0:00:09.3]} 59... Re4
{[%clk 0:00:07.5]} 0-1